[Event "Edmonton int."]
[Site "Edmonton CAN"]
[Date "2019.06.22"]
[Round "8.3"]
[White "Zierk, Steven"]
[Black "Balakrishnan, Praveen"]
[Result "1-0"]
[ECO "B33"]
[WhiteElo "2490"]
[BlackElo "2428"]
[PlyCount "83"]
[EventDate "2019.06.19"]
[EventType "tourn"]
[EventRounds "9"]
[EventCountry "CAN"]
[TimeControl "1"]

1. e4 {[%emt 0:00:02]} c5 {[%emt 0:00:08]} 2. Nf3 {[%emt 0:00:05]} Nc6 {
[%emt 0:00:05]} 3. d4 {[%emt 0:00:40]} cxd4 {[%emt 0:00:07]} 4. Nxd4 {
[%emt 0:00:04]} Nf6 {[%emt 0:00:10]} 5. Nc3 {[%emt 0:00:05]} e5 {[%emt 0:00:11]
} 6. Ndb5 {[%emt 0:00:08]} d6 {[%emt 0:00:06]} 7. Nd5 {[%emt 0:02:49]} Nxd5 {
[%emt 0:00:07]} 8. exd5 {[%emt 0:00:09]} Ne7 {[%emt 0:00:05]} 9. c4 {
[%emt 0:00:32]} Ng6 {[%emt 0:00:06]} 10. Qa4 {[%emt 0:00:37]} Bd7 {
[%emt 0:00:06]} 11. Qb4 {[%emt 0:00:10]} Bf5 {[%emt 0:00:19]} 12. Qa4 {
[%emt 0:00:52]} Bd7 {[%emt 0:00:06]} 13. Qb4 {[%emt 0:00:04]} Bf5 {
[%emt 0:00:05]} 14. h4 {[%emt 0:00:44]} h5 {[%emt 0:00:07]} 15. Bg5 {
[%emt 0:00:13]} Qb8 {[%emt 0:00:30]} 16. Nc3 {[%emt 0:05:30]} Be7 {
[%emt 0:22:33]} 17. g3 {[%emt 0:14:27]} Bxg5 {[%emt 0:24:12]} 18. hxg5 {
[%emt 0:00:06]} Ke7 {[%emt 0:01:22]} 19. Bg2 {[%emt 0:07:01]} b6 {
[%emt 0:05:58]} 20. Be4 {[%emt 0:04:17]} Bxe4 {[%emt 0:07:41]} 21. Nxe4 {
[%emt 0:00:03]} Qc7 {[%emt 0:01:35]} 22. O-O-O {[%emt 0:05:22]} h4 {
[%emt 0:02:15]} 23. Kb1 {[%emt 0:05:02]} hxg3 {[%emt 0:03:51]} 24. fxg3 {
[%emt 0:00:55]} Rxh1 {[%emt 0:04:47]} 25. Rxh1 {[%emt 0:00:03]} Rh8 {
[%emt 0:00:17]} 26. Rf1 {[%emt 0:01:47]} Rd8 {[%emt 0:05:10]} 27. a4 {
[%emt 0:05:17]} Qd7 {[%emt 0:06:10]} 28. a5 {[%emt 0:02:40]} Qc7 {
[%emt 0:05:16]} 29. axb6 {[%emt 0:05:43]} Qxb6 {[%emt 0:02:22]} 30. Qc3 {
[%emt 0:02:29]} Rb8 {[%emt 0:05:32]} 31. Qa3 {[%emt 0:01:38]} Rd8 {
[%emt 0:00:28]} 32. Qf3 {[%emt 0:07:09]} Nh8 {[%emt 0:02:36]} 33. g6 {
[%emt 0:04:06]} Rb8 {[%emt 0:00:06]} 34. Qa3 {[%emt 0:01:26]} f6 {
[%emt 0:01:57]} 35. c5 {[%emt 0:12:51]} dxc5 {[%emt 0:00:04]} 36. Nxc5 {
[%emt 0:00:14]} Ke8 {[%emt 0:00:30]} 37. Ne6 {[%emt 0:01:13]} Nxg6 {
[%emt 0:00:12]} 38. Rc1 {[%emt 0:00:02]} Ne7 {[%emt 0:01:20]} 39. Rc7 {
[%emt 0:00:50]} Qb4 {[%emt 0:00:07]} 40. Qxb4 {[%emt 0:00:19]} Rxb4 {
[%emt 0:00:14]} 41. d6 {[%emt 0:00:02]} Nc6 {[%emt 0:02:07]} 42. d7+ {
[%emt 0:00:07]} 1-0

[Event "Edmonton int."]
[Site "Edmonton CAN"]
[Date "2019.06.22"]
[Round "8.4"]
[White "Shabalov, Alexander"]
[Black "Paragua, Mark"]
[Result "1-0"]
[ECO "B90"]
[WhiteElo "2528"]
[BlackElo "2501"]
[PlyCount "53"]
[EventDate "2019.06.19"]
[EventType "tourn"]
[EventRounds "9"]
[EventCountry "CAN"]
[TimeControl "1"]

1. e4 {[%emt 0:00:02]} c5 {[%emt 0:09:21]} 2. Nf3 {[%emt 0:00:07]} d6 {
[%emt 0:00:21]} 3. d4 {[%emt 0:00:06]} cxd4 {[%emt 0:00:16]} 4. Nxd4 {
[%emt 0:00:05]} Nf6 {[%emt 0:00:09]} 5. Nc3 {[%emt 0:00:06]} a6 {[%emt 0:00:05]
} 6. h3 {[%emt 0:00:06]} e5 {[%emt 0:03:14]} 7. Nb3 {[%emt 0:00:06]} Be6 {
[%emt 0:01:37]} 8. f4 {[%emt 0:00:07]} exf4 {[%emt 0:02:59]} 9. Bxf4 {
[%emt 0:00:08]} Be7 {[%emt 0:00:24]} 10. Qe2 {[%emt 0:01:40]} Nc6 {
[%emt 0:01:24]} 11. O-O-O {[%emt 0:00:26]} Qc7 {[%emt 0:01:31]} 12. g4 {
[%emt 0:07:27]} Ne5 {[%emt 0:02:13]} 13. Nd4 {[%emt 0:08:06]} g6 {
[%emt 0:02:02]} 14. Qg2 {[%emt 0:14:08]} Rc8 {[%emt 0:02:23]} 15. Kb1 {
[%emt 0:02:40]} Qa5 {[%emt 0:13:15]} 16. Be2 {[%emt 0:15:20]} O-O {
[%emt 0:27:28]} 17. g5 {[%emt 0:24:31]} Nfd7 {[%emt 0:00:47]} 18. Bd2 {
[%emt 0:05:14]} Qb6 {[%emt 0:05:21]} 19. Nxe6 {[%emt 0:02:15]} fxe6 {
[%emt 0:00:07]} 20. h4 {[%emt 0:01:11]} Qf2 {[%emt 0:07:01]} 21. Qh3 {
[%emt 0:05:54]} Rxc3 {[%emt 0:00:40]} 22. Qxe6+ {[%emt 0:00:28]} Rf7 {
[%emt 0:01:02]} 23. Rdf1 {[%emt 0:00:26]} Qxe2 {[%emt 0:00:47]} 24. Rxf7 {
[%emt 0:00:07]} Nxf7 {[%emt 0:00:05]} 25. Bxc3 {[%emt 0:00:12]} Nc5 {
[%emt 0:11:03]} 26. Qxe7 {[%emt 0:00:26]} Qxe4 {[%emt 0:00:18]} 27. Re1 {
[%emt 0:00:33]} 1-0

[Event "Edmonton int."]
[Site "Edmonton CAN"]
[Date "2019.06.22"]
[Round "8.5"]
[White "Noritsyn, Nikolay"]
[Black "Banerjee, Bitan"]
[Result "1-0"]
[ECO "B90"]
[WhiteElo "2508"]
[BlackElo "2427"]
[PlyCount "65"]
[EventDate "2019.06.19"]
[EventType "tourn"]
[EventRounds "9"]
[EventCountry "CAN"]
[TimeControl "1"]

1. e4 {[%emt 0:00:07]} c5 {[%emt 0:00:07]} 2. Nf3 {[%emt 0:00:19]} d6 {
[%emt 0:00:09]} 3. d4 {[%emt 0:00:02]} cxd4 {[%emt 0:00:05]} 4. Nxd4 {
[%emt 0:00:04]} Nf6 {[%emt 0:00:04]} 5. Nc3 {[%emt 0:00:18]} a6 {[%emt 0:00:09]
} 6. Nb3 {[%emt 0:00:35]} Nbd7 {[%emt 0:14:04]} 7. a4 {[%emt 0:00:28]} b6 {
[%emt 0:02:03]} 8. g4 {[%emt 0:00:17]} Bb7 {[%emt 0:03:28]} 9. Bg2 {
[%emt 0:00:24]} Rc8 {[%emt 0:02:35]} 10. Qe2 {[%emt 0:04:35]} g6 {
[%emt 0:14:42]} 11. f4 {[%emt 0:01:04]} h6 {[%emt 0:14:16]} 12. O-O {
[%emt 0:07:00]} e5 {[%emt 0:00:04]} 13. Be3 {[%emt 0:15:20]} Be7 {
[%emt 0:00:19]} 14. h3 {[%emt 0:07:40]} Kf8 {[%emt 0:11:36]} 15. Rad1 {
[%emt 0:02:27]} Kg7 {[%emt 0:05:10]} 16. Qf2 {[%emt 0:25:05]} Rxc3 {
[%emt 0:11:08]} 17. bxc3 {[%emt 0:03:51]} Nxe4 {[%emt 0:00:18]} 18. Bxe4 {
[%emt 0:00:28]} Bxe4 {[%emt 0:00:04]} 19. fxe5 {[%emt 0:00:24]} Nxe5 {
[%emt 0:00:05]} 20. Bd4 {[%emt 0:01:42]} Qe8 {[%emt 0:01:55]} 21. Rde1 {
[%emt 0:01:35]} Bd5 {[%emt 0:01:40]} 22. a5 {[%emt 0:12:26]} bxa5 {
[%emt 0:04:13]} 23. Nd2 {[%emt 0:00:22]} f6 {[%emt 0:00:31]} 24. c4 {
[%emt 0:00:27]} Ba8 {[%emt 0:03:18]} 25. c5 {[%emt 0:00:32]} Rf8 {
[%emt 0:02:15]} 26. Ne4 {[%emt 0:06:44]} Qc6 {[%emt 0:01:21]} 27. Qg3 {
[%emt 0:05:00]} Qd5 {[%emt 0:02:28]} 28. Ba1 {[%emt 0:00:08]} dxc5 {
[%emt 0:02:54]} 29. c4 {[%emt 0:00:03]} Qe6 {[%emt 0:01:27]} 30. Nxf6 {
[%emt 0:01:35]} Bxf6 {[%emt 0:01:24]} 31. Rxf6 {[%emt 0:00:27]} Rxf6 {
[%emt 0:01:23]} 32. Rxe5 {[%emt 0:01:59]} Qxc4 {[%emt 0:00:45]} 33. Re7+ {
[%emt 0:00:37]} 1-0

[Event "Edmonton int."]
[Site "Edmonton CAN"]
[Date "2019.06.23"]
[Round "9.1"]
[White "Banerjee, Bitan"]
[Black "Daggupati, Balaji"]
[Result "1/2-1/2"]
[ECO "A11"]
[WhiteElo "2427"]
[BlackElo "2331"]
[PlyCount "69"]
[EventDate "2019.06.19"]
[EventType "tourn"]
[EventRounds "9"]
[EventCountry "CAN"]
[TimeControl "1"]

1. Nf3 {[%emt 0:11:39]} d5 {[%emt 0:00:05]} 2. e3 {[%emt 0:00:03]} Nf6 {
[%emt 0:02:29]} 3. c4 {[%emt 0:00:35]} c6 {[%emt 0:00:05]} 4. Nc3 {
[%emt 0:00:04]} e6 {[%emt 0:00:33]} 5. Qc2 {[%emt 0:01:20]} Nbd7 {
[%emt 0:00:07]} 6. b3 {[%emt 0:02:06]} Bd6 {[%emt 0:00:07]} 7. g4 {
[%emt 0:06:44]} Nxg4 {[%emt 0:02:25]} 8. Rg1 {[%emt 0:00:05]} Nge5 {
[%emt 0:00:08]} 9. Nxe5 {[%emt 0:08:00]} Nxe5 {[%emt 0:00:57]} 10. Be2 {
[%emt 0:00:04]} Qf6 {[%emt 0:02:48]} 11. Bb2 {[%emt 0:15:10]} Nf3+ {
[%emt 0:00:49]} 12. Bxf3 {[%emt 0:00:06]} Qxf3 {[%emt 0:00:08]} 13. Rxg7 {
[%emt 0:00:05]} Bd7 {[%emt 0:23:26]} 14. Ne2 {[%emt 0:10:35]} Bxh2 {
[%emt 0:03:07]} 15. O-O-O {[%emt 0:21:27]} O-O-O {[%emt 0:05:05]} 16. Nf4 {
[%emt 0:10:11]} Bxf4 {[%emt 0:03:10]} 17. Rxf7 {[%emt 0:00:03]} Rdf8 {
[%emt 0:01:19]} 18. Rxf4 {[%emt 0:01:07]} Rxf4 {[%emt 0:00:09]} 19. Bxh8 {
[%emt 0:00:04]} Rf5 {[%emt 0:01:18]} 20. cxd5 {[%emt 0:00:24]} exd5 {
[%emt 0:02:00]} 21. Qc5 {[%emt 0:01:13]} b6 {[%emt 0:06:42]} 22. Qd6 {
[%emt 0:01:23]} Qe4 {[%emt 0:00:53]} 23. f4 {[%emt 0:00:44]} Qe6 {
[%emt 0:00:34]} 24. Qxe6 {[%emt 0:00:39]} Bxe6 {[%emt 0:00:05]} 25. Rh1 {
[%emt 0:00:03]} Rf7 {[%emt 0:00:53]} 26. Rh6 {[%emt 0:01:35]} Bd7 {
[%emt 0:01:00]} 27. Be5 c5 {[%emt 0:00:00]} 28. d3 Bf5 {[%emt 0:00:00]} 29. Kd2
Bg6 {[%emt 0:00:00]} 30. Rh1 h5 {[%emt 0:00:00]} 31. Re1 Rd7 {[%emt 0:00:00]}
32. Kc3 d4+ {[%emt 0:00:00]} 33. exd4 cxd4+ {[%emt 0:00:00]} 34. Bxd4 h4 {
[%emt 0:00:00]} 35. Rh1 1/2-1/2

[Event "Edmonton int."]
[Site "Edmonton CAN"]
[Date "2019.06.23"]
[Round "9.2"]
[White "Paragua, Mark"]
[Black "Noritsyn, Nikolay"]
[Result "1/2-1/2"]
[ECO "B90"]
[WhiteElo "2501"]
[BlackElo "2508"]
[PlyCount "61"]
[EventDate "2019.06.19"]
[EventType "tourn"]
[EventRounds "9"]
[EventCountry "CAN"]
[TimeControl "1"]

1. e4 {[%emt 0:00:03]} c5 {[%emt 0:00:17]} 2. Nf3 {[%emt 0:00:09]} d6 {
[%emt 0:00:18]} 3. d4 {[%emt 0:00:07]} cxd4 {[%emt 0:00:10]} 4. Nxd4 {
[%emt 0:00:05]} Nf6 {[%emt 0:00:06]} 5. Nc3 {[%emt 0:00:10]} a6 {[%emt 0:00:13]
} 6. a4 {[%emt 0:00:26]} g6 {[%emt 0:04:02]} 7. Be2 {[%emt 0:00:18]} Bg7 {
[%emt 0:00:06]} 8. O-O {[%emt 0:00:07]} O-O {[%emt 0:00:07]} 9. Be3 {
[%emt 0:00:17]} Nc6 {[%emt 0:00:17]} 10. Qd2 {[%emt 0:01:00]} Ng4 {
[%emt 0:04:07]} 11. Bxg4 {[%emt 0:01:42]} Bxg4 {[%emt 0:00:21]} 12. Nd5 {
[%emt 0:00:49]} Rc8 {[%emt 0:09:12]} 13. f3 {[%emt 0:17:48]} Nxd4 {
[%emt 0:08:21]} 14. Bxd4 {[%emt 0:00:39]} Bxd4+ {[%emt 0:00:09]} 15. Qxd4 {
[%emt 0:00:04]} Be6 {[%emt 0:00:06]} 16. c3 {[%emt 0:01:47]} Bxd5 {
[%emt 0:10:23]} 17. exd5 {[%emt 0:00:07]} Qa5 {[%emt 0:00:15]} 18. Rfe1 {
[%emt 0:01:04]} Rfe8 {[%emt 0:00:21]} 19. Re4 {[%emt 0:08:35]} Qc5 {
[%emt 0:01:42]} 20. a5 {[%emt 0:03:26]} e6 {[%emt 0:11:07]} 21. dxe6 {
[%emt 0:05:43]} Rxe6 {[%emt 0:00:22]} 22. Qxc5 {[%emt 0:06:22]} Rxc5 {
[%emt 0:00:09]} 23. Rd1 {[%emt 0:07:45]} Rxe4 {[%emt 0:17:36]} 24. fxe4 {
[%emt 0:00:07]} Rxa5 {[%emt 0:00:07]} 25. Rxd6 {[%emt 0:00:18]} Rb5 {
[%emt 0:00:32]} 26. b4 {[%emt 0:00:23]} a5 {[%emt 0:00:19]} 27. bxa5 {
[%emt 0:01:42]} Rxa5 {[%emt 0:00:06]} 28. Rb6 {[%emt 0:00:38]} Ra3 {
[%emt 0:01:34]} 29. Rxb7 {[%emt 0:00:12]} Rxc3 {[%emt 0:00:05]} 30. Kf2 {
[%emt 0:00:06]} h5 {[%emt 0:00:17]} 31. h4 {[%emt 0:00:35]} 1/2-1/2

[Event "Edmonton int."]
[Site "Edmonton CAN"]
[Date "2019.06.23"]
[Round "9.3"]
[White "Balakrishnan, Praveen"]
[Black "Shabalov, Alexander"]
[Result "1-0"]
[ECO "D15"]
[WhiteElo "2428"]
[BlackElo "2528"]
[PlyCount "73"]
[EventDate "2019.06.19"]
[EventType "tourn"]
[EventRounds "9"]
[EventCountry "CAN"]
[TimeControl "1"]

1. d4 {[%emt 0:00:02]} d5 {[%emt 0:03:11]} 2. c4 {[%emt 0:00:08]} c6 {
[%emt 0:00:08]} 3. Nf3 {[%emt 0:00:17]} Nf6 {[%emt 0:01:49]} 4. Nc3 {
[%emt 0:00:19]} a6 {[%emt 0:00:20]} 5. e3 {[%emt 0:01:20]} b5 {[%emt 0:01:30]}
6. b3 {[%emt 0:00:31]} Bg4 {[%emt 0:02:08]} 7. Bd2 {[%emt 0:03:54]} e6 {
[%emt 0:03:04]} 8. h3 {[%emt 0:03:15]} Bxf3 {[%emt 0:03:13]} 9. Qxf3 {
[%emt 0:00:16]} Nbd7 {[%emt 0:00:18]} 10. Bd3 {[%emt 0:08:00]} Bb4 {
[%emt 0:06:59]} 11. O-O {[%emt 0:19:11]} O-O {[%emt 0:00:59]} 12. a3 {
[%emt 0:07:43]} Ba5 {[%emt 0:03:56]} 13. Rfd1 {[%emt 0:04:23]} Re8 {
[%emt 0:24:17]} 14. Bf1 {[%emt 0:21:08]} bxc4 {[%emt 0:13:54]} 15. bxc4 {
[%emt 0:00:15]} Nb6 {[%emt 0:00:04]} 16. Nxd5 {[%emt 0:06:33]} Nbxd5 {
[%emt 0:00:06]} 17. cxd5 {[%emt 0:00:15]} cxd5 {[%emt 0:00:04]} 18. Bd3 {
[%emt 0:02:27]} Bxd2 {[%emt 0:02:55]} 19. Rxd2 {[%emt 0:00:09]} Qa5 {
[%emt 0:00:05]} 20. Rc2 {[%emt 0:02:03]} Rec8 {[%emt 0:04:32]} 21. Qe2 {
[%emt 0:23:11]} g6 {[%emt 0:00:00]} 22. Rxc8+ {[%emt 0:00:00]} Rxc8 {
[%emt 0:00:00]} 23. Bxa6 {[%emt 0:00:00]} Ra8 {[%emt 0:00:00]} 24. Bb5 {
[%emt 0:00:00]} Ne4 {[%emt 0:00:00]} 25. Qf1 {[%emt 0:00:00]} Rc8 {
[%emt 0:04:08]} 26. Bd3 {[%emt 0:00:00]} Nd2 {[%emt 0:00:00]} 27. Qe1 {
[%emt 0:00:00]} Qc3 {[%emt 0:00:00]} 28. Be2 {[%emt 0:00:00]} Qb2 {
[%emt 0:08:34]} 29. a4 {[%emt 0:00:38]} Nb3 {[%emt 0:01:48]} 30. Rb1 {
[%emt 0:00:35]} Qa2 {[%emt 0:00:09]} 31. Bd3 {[%emt 0:01:24]} Kg7 {
[%emt 0:06:13]} 32. Qb4 {[%emt 0:01:18]} Nc1 {[%emt 0:01:23]} 33. Bf1 {
[%emt 0:01:10]} Rc2 {[%emt 0:00:45]} 34. Qb8 {[%emt 0:01:05]} Qxa4 {
[%emt 0:04:02]} 35. Qe5+ {[%emt 0:00:04]} Kh6 {[%emt 0:00:06]} 36. Rb7 {
[%emt 0:00:45]} Qe8 {[%emt 0:00:28]} 37. Qf6 {[%emt 0:00:13]} 1-0

[Event "Edmonton int."]
[Site "Edmonton CAN"]
[Date "2019.06.23"]
[Round "9.4"]
[White "Dave, Bhavik"]
[Black "Zierk, Steven"]
[Result "0-1"]
[ECO "D20"]
[WhiteElo "1818"]
[BlackElo "2490"]
[PlyCount "40"]
[EventDate "2019.06.19"]
[EventType "tourn"]
[EventRounds "9"]
[EventCountry "CAN"]
[TimeControl "1"]

1. d4 {[%emt 0:01:30]} d5 {[%emt 0:00:39]} 2. c4 {[%emt 0:00:07]} dxc4 {
[%emt 0:02:05]} 3. e3 {[%emt 0:00:27]} e5 {[%emt 0:00:15]} 4. Nf3 {
[%emt 0:02:45]} exd4 {[%emt 0:01:39]} 5. Bxc4 {[%emt 0:02:22]} Bd6 {
[%emt 0:04:45]} 6. exd4 {[%emt 0:03:07]} Nf6 {[%emt 0:00:17]} 7. O-O {
[%emt 0:00:45]} O-O {[%emt 0:00:08]} 8. Bg5 {[%emt 0:00:32]} Nc6 {
[%emt 0:04:33]} 9. Nbd2 {[%emt 0:04:24]} h6 {[%emt 0:09:06]} 10. Be3 {
[%emt 0:09:40]} Bf5 {[%emt 0:06:10]} 11. a3 {[%emt 0:01:34]} Ng4 {
[%emt 0:04:13]} 12. Re1 {[%emt 0:08:08]} a6 {[%emt 0:07:28]} 13. Nf1 {
[%emt 0:02:25]} Qd7 {[%emt 0:03:19]} 14. Bd3 {[%emt 0:04:35]} Rfe8 {
[%emt 0:01:48]} 15. b4 {[%emt 0:07:02]} Bxd3 {[%emt 0:02:03]} 16. Qxd3 {
[%emt 0:00:15]} Ne7 {[%emt 0:00:27]} 17. N1d2 {[%emt 0:02:06]} Nd5 {
[%emt 0:07:02]} 18. Ne4 {[%emt 0:02:55]} Qf5 {[%emt 0:01:45]} 19. Nc5 {
[%emt 0:00:47]} Ndxe3 {[%emt 0:01:11]} 20. fxe3 {[%emt 0:00:56]} Bxh2+ {
[%emt 0:14:05]} 0-1

[Event "Edmonton int."]
[Site "Edmonton CAN"]
[Date "2019.06.23"]
[Round "9.5"]
[White "Findlay, Ian"]
[Black "Porper, Edward"]
[Result "0-1"]
[ECO "B06"]
[WhiteElo "2206"]
[BlackElo "2382"]
[PlyCount "56"]
[EventDate "2019.06.19"]
[EventType "tourn"]
[EventRounds "9"]
[EventCountry "CAN"]
[TimeControl "1"]

1. e4 {[%emt 0:07:03]} d6 {[%emt 0:00:10]} 2. d4 {[%emt 0:00:14]} g6 {
[%emt 0:00:03]} 3. g3 {[%emt 0:00:53]} Bg7 {[%emt 0:00:09]} 4. Bg2 {
[%emt 0:00:05]} c5 {[%emt 0:02:03]} 5. dxc5 {[%emt 0:04:18]} Qa5+ {
[%emt 0:00:36]} 6. Bd2 {[%emt 0:00:08]} Qxc5 {[%emt 0:00:06]} 7. Bc3 {
[%emt 0:00:05]} Nf6 {[%emt 0:00:34]} 8. Ne2 {[%emt 0:03:24]} Nc6 {
[%emt 0:03:12]} 9. O-O {[%emt 0:01:18]} O-O {[%emt 0:00:36]} 10. Nd2 {
[%emt 0:01:21]} b5 {[%emt 0:04:37]} 11. Nb3 {[%emt 0:01:05]} Qb6 {
[%emt 0:00:00]} 12. a4 {[%emt 0:03:08]} b4 {[%emt 0:00:47]} 13. a5 {
[%emt 0:00:29]} Qa6 {[%emt 0:02:33]} 14. Bd2 {[%emt 0:01:39]} Bg4 {
[%emt 0:01:15]} 15. f3 {[%emt 0:02:57]} Be6 {[%emt 0:00:29]} 16. Nbd4 {
[%emt 0:12:32]} Bc4 {[%emt 0:03:47]} 17. Re1 {[%emt 0:00:41]} Nd7 {
[%emt 0:03:20]} 18. c3 {[%emt 0:04:04]} Nc5 {[%emt 0:06:25]} 19. Nxc6 {
[%emt 0:05:33]} Qxc6 {[%emt 0:00:11]} 20. Nf4 {[%emt 0:03:50]} bxc3 {
[%emt 0:04:01]} 21. Bxc3 {[%emt 0:00:25]} Bxc3 {[%emt 0:00:09]} 22. bxc3 {
[%emt 0:00:04]} Nb3 {[%emt 0:00:51]} 23. Rb1 {[%emt 0:03:16]} Qc5+ {
[%emt 0:04:18]} 24. Kh1 {[%emt 0:00:17]} Nxa5 {[%emt 0:00:12]} 25. Qa4 {
[%emt 0:04:44]} Rab8 {[%emt 0:05:57]} 26. Qd7 {[%emt 0:01:40]} Nc6 {
[%emt 0:02:23]} 27. Nd5 {[%emt 0:03:06]} Bxd5 {[%emt 0:01:29]} 28. exd5 {
[%emt 0:00:57]} Ne5 {[%emt 0:00:04]} 0-1

[Event "Halifax Summer op"]
[Site "Halifax CAN"]
[Date "2019.06.28"]
[Round "1.1"]
[White "Kapra, Jerjis"]
[Black "Turner, Peter"]
[Result "1-0"]
[ECO "C06"]
[WhiteElo "1658"]
[BlackElo "1978"]
[PlyCount "75"]
[EventDate "2019.05.28"]
[EventType "swiss"]
[EventRounds "5"]
[EventCountry "CAN"]
[TimeControl "2+30"]

1. e4 {[%emt 0:00:00]} e6 {[%emt 0:00:12]} 2. d4 {[%emt 0:00:07]} d5 {
[%emt 0:00:00]} 3. Nd2 {[%emt 0:00:05]} Nf6 {[%emt 0:01:22]} 4. e5 {
[%emt 0:00:08]} Nfd7 {[%emt 0:00:05]} 5. Bd3 {[%emt 0:00:12]} c5 {
[%emt 0:00:28]} 6. c3 {[%emt 0:00:08]} Nc6 {[%emt 0:01:48]} 7. Ne2 {
[%emt 0:00:07]} Be7 {[%emt 0:01:05]} 8. f4 {[%emt 0:02:39]} Qb6 {[%emt 0:06:27]
} 9. Nf3 {[%emt 0:00:14]} cxd4 {[%emt 0:00:00]} 10. cxd4 {[%emt 0:00:30]} Nf8 {
[%emt 0:08:18]} 11. O-O {[%emt 0:02:56]} Bd7 {[%emt 0:03:07]} 12. Qe1 {
[%emt 0:17:32]} O-O-O {[%emt 0:04:59]} 13. a3 {[%emt 0:04:29]} h6 {
[%emt 0:10:45]} 14. b4 {[%emt 0:00:28]} Be8 {[%emt 0:05:51]} 15. Bd2 {
[%emt 0:01:17]} a6 {[%emt 0:11:20]} 16. Rb1 {[%emt 0:05:08]} Qa7 {
[%emt 0:04:58]} 17. a4 {[%emt 0:02:54]} b5 {[%emt 0:12:08]} 18. axb5 {
[%emt 0:00:00]} axb5 {[%emt 0:00:08]} 19. Qf2 {[%emt 0:02:44]} Qb7 {
[%emt 0:04:55]} 20. Rfc1 {[%emt 0:03:45]} Kb8 {[%emt 0:03:14]} 21. Rc2 {
[%emt 0:04:51]} f6 {[%emt 0:09:04]} 22. Nc1 {[%emt 0:09:16]} g5 {[%emt 0:28:21]
} 23. exf6 {[%emt 0:00:00]} Bxf6 {[%emt 0:00:00]} 24. fxg5 {[%emt 0:00:00]}
hxg5 {[%emt 0:00:00]} 25. Bxg5 {[%emt 0:00:00]} Bxg5 {[%emt 0:00:00]} 26. Qg3+
{[%emt 0:00:00]} Qc7 {[%emt 0:00:00]} 27. Qxg5 {[%emt 0:00:31]} Rd7 {
[%emt 0:03:34]} 28. Rxc6 {[%emt 0:01:15]} Qxc6 {[%emt 0:00:42]} 29. Qe5+ {
[%emt 0:00:25]} Qd6 {[%emt 0:04:37]} 30. Qxh8 {[%emt 0:00:15]} Kb7 {
[%emt 0:01:06]} 31. Qe5 {[%emt 0:03:27]} Qc6 {[%emt 0:00:36]} 32. Nb3 {
[%emt 0:00:24]} Qc3 {[%emt 0:01:13]} 33. Nc5+ {[%emt 0:00:47]} Kc8 {
[%emt 0:00:17]} 34. Bxb5 {[%emt 0:03:11]} Ng6 {[%emt 0:02:52]} 35. Bxd7+ {
[%emt 0:01:03]} Bxd7 {[%emt 0:00:03]} 36. Qe1 {[%emt 0:01:09]} Qc2 {
[%emt 0:01:12]} 37. Qc1 {[%emt 0:01:01]} Qf5 {[%emt 0:00:21]} 38. Nxe6+ {
[%emt 0:00:25]} 1-0

[Event "Halifax Summer op"]
[Site "Halifax CAN"]
[Date "2019.06.28"]
[Round "1.2"]
[White "Saunders, Stephen"]
[Black "Bardsley, David"]
[Result "1-0"]
[ECO "E81"]
[WhiteElo "1837"]
[BlackElo "1566"]
[PlyCount "61"]
[EventDate "2019.05.28"]
[EventType "swiss"]
[EventRounds "5"]
[EventCountry "CAN"]
[TimeControl "2+30"]

1. d4 {[%emt 0:00:10]} Nf6 {[%emt 0:00:14]} 2. c4 {[%emt 0:00:12]} g6 {
[%emt 0:00:00]} 3. f3 {[%emt 0:00:44]} Bg7 {[%emt 0:01:43]} 4. e4 {
[%emt 0:00:31]} d6 {[%emt 0:01:05]} 5. Nc3 {[%emt 0:00:50]} O-O {[%emt 0:01:39]
} 6. Bg5 {[%emt 0:00:00]} c5 {[%emt 0:03:22]} 7. d5 {[%emt 0:00:54]} Nbd7 {
[%emt 0:09:24]} 8. Nh3 {[%emt 0:01:35]} Ne5 {[%emt 0:06:18]} 9. Nf2 {
[%emt 0:02:38]} b6 {[%emt 0:05:00]} 10. a4 {[%emt 0:10:40]} Qc7 {[%emt 0:08:18]
} 11. Be2 {[%emt 0:02:22]} Ba6 {[%emt 0:04:28]} 12. Nb5 {[%emt 0:03:34]} Bxb5 {
[%emt 0:04:24]} 13. axb5 {[%emt 0:01:08]} h6 {[%emt 0:05:15]} 14. Be3 {
[%emt 0:02:57]} Qc8 {[%emt 0:05:00]} 15. Ra6 {[%emt 0:04:55]} Ne8 {
[%emt 0:03:58]} 16. Qa1 {[%emt 0:07:48]} Qb7 {[%emt 0:02:14]} 17. O-O {
[%emt 0:02:20]} Nc7 {[%emt 0:07:14]} 18. Ra3 {[%emt 0:00:34]} a5 {
[%emt 0:03:58]} 19. Qc1 {[%emt 0:03:55]} h5 {[%emt 0:09:05]} 20. f4 {
[%emt 0:06:51]} Nd7 {[%emt 0:01:28]} 21. f5 {[%emt 0:03:33]} Ne5 {
[%emt 0:00:00]} 22. Bh6 {[%emt 0:03:18]} Ne8 {[%emt 0:04:48]} 23. Rg3 {
[%emt 0:04:17]} Kh7 {[%emt 0:05:04]} 24. Bxg7 {[%emt 0:08:19]} Nxg7 {
[%emt 0:01:21]} 25. Nd3 {[%emt 0:04:31]} Nxd3 {[%emt 0:31:36]} 26. Bxd3 {
[%emt 0:00:00]} e6 {[%emt 0:00:00]} 27. Qg5 {[%emt 0:00:00]} e5 {[%emt 0:03:10]
} 28. f6 {[%emt 0:05:28]} Ne8 {[%emt 0:01:08]} 29. Rh3 {[%emt 0:01:28]} Qd7 {
[%emt 0:03:29]} 30. Rff3 {[%emt 0:06:09]} a4 {[%emt 0:01:30]} 31. Rxh5+ {
[%emt 0:02:26]} 1-0